fUST/lending_fUST_20240525
["ID","MTS","AMOUNT","RATE_DAILY","PERIOD"]
[327918958,1716625882051,-500.0,0.00029589,20]
[327918959,1716625882061,-500.0,0.00029589,20]
[327918960,1716625882070,-500.0,0.00029589,20]
[327918961,1716625882079,-721.25,0.00029589,20]
[327918962,1716625882088,-500.0,0.00029589,20]
[327918963,1716625882099,-964.17,0.00029589,20]
[327918964,1716625882110,-500.0,0.00029589,20]
[327918965,1716625882121,-536.36,0.00029589,20]
[327918966,1716625882130,-500.0,0.00029589,20]
[327918967,1716625882139,-554.71,0.00029589,20]
[327918968,1716625882151,-709.62,0.00029589,20]
[327918969,1716625882162,-570.57,0.00029589,20]
[327918970,1716625882172,-500.0,0.00029589,20]
[327918971,1716625882183,-526.11,0.00029589,20]
[327918972,1716625882192,-547.14,0.00029589,20]
[327918973,1716625882201,-521.18,0.00029589,20]
[327918974,1716625882213,-571.92,0.00029589,20]
[327918975,1716625882223,-503.18,0.00029589,20]
[327918976,1716625882233,-2441.44,0.00029589,20]
[327918977,1716625882243,-3812.61,0.00029589,20]
[327918978,1716625882252,-500.0,0.00029589,20]
[327918979,1716625882262,-545.2,0.00029589,20]
[327918980,1716625882272,-500.0,0.00029589,20]
[327918981,1716625882281,-500.0,0.00029589,20]
[327918982,1716625882291,-500.0,0.00029589,20]
[327918983,1716625882300,-818.85,0.00029589,20]
[327918984,1716625882310,-512.82,0.00029589,20]
[327918985,1716625882319,-500.0,0.00029589,20]
[327918986,1716625882328,-699.92,0.00029589,20]
[327918987,1716625882338,-625.69,0.00029589,20]
[327918988,1716625882347,-1637.53,0.00029589,20]
[327918989,1716625882356,-159.38285117,0.00029589,20]
[327918990,1716625882366,-692.07,0.00029589,20]
[327918991,1716625882375,-1647.0,0.00029589,20]
[327918992,1716625882384,-500.0,0.00029589,20]
[327918993,1716625882394,-1590.4,0.00029589,20]
[327918994,1716625882404,-608.21,0.00029589,20]
[327918995,1716625882416,-4026.36,0.00029589,20]
[327918996,1716625882425,-298.82109396,0.00029589,20]
[327918997,1716625882436,-509.49,0.00029589,20]
[327918998,1716625882445,-500.0,0.00029589,20]
[327918999,1716625882455,-718.05,0.00029589,20]
[327919000,1716625882466,-500.0,0.00029589,20]
[327919001,1716625882475,-4651.21,0.00029589,20]
[327919002,1716625882485,-807.26,0.00029589,20]
[327919003,1716625882494,-951.39,0.00029589,20]
[327919004,1716625882616,-1651.56,0.00029589,20]
[327919005,1716625882626,-866.31,0.00029589,20]
[327919006,1716625882635,-728.56,0.00029589,20]
[327919007,1716625882644,-5083.02,0.00029589,20]
[327919008,1716625882653,-606.33,0.00029589,20]
[327919009,1716625882663,-153.46640367,0.00029621,2]
[327919010,1716625882672,-492.48142386,0.0002967,2]
[327919011,1716625882682,-535.5,0.00029683,7]
[327919012,1716625882691,-492.48142386,0.00029736,2]
[327919013,1716625882700,-492.48142386,0.00029747,2]
[327919014,1716625882710,-193.15442282,0.00029839,2]
[327919015,1716625882719,-528.15,0.00029863,21]
[327919016,1716625882728,-659.81,0.00029863,21]
[327919017,1716625882737,-500.0,0.00029863,21]
[327919018,1716625882746,-768.52,0.00029863,21]
[327919019,1716625882755,-452.34042307,0.00029863,21]
[327919020,1716625882764,-500.0,0.00029863,21]
[327919021,1716625882773,-428.56602586,0.00029863,21]
[327919022,1716625882782,-537.15,0.00029863,21]
[327919023,1716625882792,-500.0,0.00029863,21]
[327919024,1716625882801,-570.39,0.00029863,21]
[327919025,1716625882811,-500.0,0.00029863,21]
[327919026,1716625882820,-500.0,0.00029863,21]
[327919027,1716625882835,-500.0,0.00029863,21]
[327919028,1716625882844,-721.25,0.00029863,21]
[327919029,1716625882853,-500.0,0.00029863,21]
[327919030,1716625882863,-964.17,0.00029863,21]
[327919031,1716625882872,-500.0,0.00029863,21]
[327919032,1716625882882,-536.36,0.00029863,21]
[327919033,1716625882891,-415.83470946,0.00029863,21]
[327919034,1716625882902,-554.71,0.00029863,21]
[327919035,1716625882911,-709.62,0.00029863,21]
[327919036,1716625882921,-570.57,0.00029863,21]
[327919037,1716625882931,-500.0,0.00029863,21]
[327919038,1716625882941,-526.11,0.00029863,21]
[327919039,1716625882950,-547.14,0.00029863,21]
[327919040,1716625882960,-521.18,0.00029863,21]
[327919041,1716625882969,-571.92,0.00029863,21]
[327919042,1716625882979,-503.18,0.00029863,21]
[327919043,1716625882988,-2441.44,0.00029863,21]
[327919044,1716625882997,-3812.61,0.00029863,21]
[327919045,1716625883007,-500.0,0.00029863,21]
[327919046,1716625883016,-545.2,0.00029863,21]
[327919047,1716625883026,-402.71836367,0.00029863,21]
[327919048,1716625883035,-500.0,0.00029863,21]
[327919049,1716625883045,-601.86349406,0.00029863,21]
[327919050,1716625883054,-818.85,0.00029863,21]
[327919051,1716625883065,-512.82,0.00029863,21]
[327919052,1716625883075,-500.0,0.00029863,21]
[327919053,1716625883085,-699.92,0.00029863,21]
[327919054,1716625883095,-625.69,0.00029863,21]
[327919055,1716625883104,-1637.53,0.00029863,21]
[327919056,1716625883114,-692.07,0.00029863,21]
[327919057,1716625883124,-1647.0,0.00029863,21]
[327919058,1716625883133,-500.0,0.00029863,21]
[327919059,1716625883144,-1590.4,0.00029863,21]
[327919060,1716625883153,-608.21,0.00029863,21]
[327919061,1716625883164,-4026.36,0.00029863,21]
[327919062,1716625883173,-509.49,0.00029863,21]
[327919063,1716625883184,-500.0,0.00029863,21]
[327919064,1716625883194,-718.05,0.00029863,21]
[327919065,1716625883203,-500.0,0.00029863,21]
[327919066,1716625883213,-4651.21,0.00029863,21]
[327919067,1716625883222,-807.26,0.00029863,21]
[327919068,1716625883231,-951.39,0.00029863,21]
[327919069,1716625883240,-1651.56,0.00029863,21]
[327919070,1716625883250,-866.31,0.00029863,21]
[327919071,1716625883260,-728.56,0.00029863,21]
[327919072,1716625883269,-5083.02,0.00029863,21]
[327919073,1716625883278,-606.33,0.00029863,21]
[327919074,1716625883288,-152.60733836,0.0002987,2]
[327919075,1716625883297,-57123.92565604,0.0002988,2]
[327919076,1716625883307,-300.0,0.000299,2]
[327919077,1716625883316,-5457.75340104,0.000299,2]
[327919078,1716625883325,-19723.743,0.00029963,30]
[327919079,1716625883335,-17243.67081528,0.0003,10]
[327919080,1716625883344,-3600.0,0.0003,2]
[327919081,1716625883353,-154.8915759,0.0003,4]
[327919082,1716625883362,-456.27302511,0.0003,4]
[327919083,1716625883371,-155.09332633,0.0003,4]
[327919084,1716625883381,-467.23476007,0.0003,30]
[327919085,1716625883391,-279.13321058,0.0003,2]
[327919086,1716625883400,-8306.0,0.0003,2]
[327919087,1716625883410,-7514.74050601,0.0003,2]
[327919088,1716625883419,-1500.0,0.0003,2]
[327919089,1716625883429,-500000.0,0.0003,2]
[327919090,1716625883438,-2023.22896781,0.0003,10]
[327919091,1716625883447,-24204.0,0.0003,30]
[327919092,1716625883456,-198.36654232,0.0003,4]
[327919093,1716625883466,-1000.0,0.0003,30]
[327919094,1716625883475,-151.0,0.0003,2]
[327919095,1716625883484,-931.52034517,0.0003,2]
[327919096,1716625883494,-127457.7283995,0.0003,2]
[327919097,1716625883505,-1000.0,0.0003,120]
[327919098,1716625883514,-60106.76,0.0003,2]
[327919099,1716625883524,-9666.3528247,0.0003,2]
[327919100,1716625883533,-3026.97335961,0.0003,3]
[327919101,1716625883542,-6000.0,0.0003,2]
[327919102,1716625883551,-154.84515485,0.0003,4]
[327919103,1716625883560,-227.0,0.0003,2]
[327919104,1716625883571,-3027.27575455,0.0003,3]
[327919105,1716625883580,-269.67464098,0.0003,2]
[327919106,1716625883589,-528.15,0.00030136,22]
[327919107,1716625883598,-659.81,0.00030136,22]
[327919108,1716625883606,-400.64742005,0.00030136,22]
[327919109,1716625883615,-768.52,0.00030136,22]
[327919110,1716625883624,-416.36353799,0.00030136,22]
[327919111,1716625883633,-537.15,0.00030136,22]
[327919112,1716625883642,-500.0,0.00030136,22]
[327919113,1716625883651,-570.39,0.00030136,22]
[327919114,1716625883660,-500.0,0.00030136,22]
[327919115,1716625883670,-500.0,0.00030136,22]
[327919116,1716625883679,-500.0,0.00030136,22]
[327919117,1716625883689,-721.25,0.00030136,22]
[327919118,1716625883698,-480.11611777,0.00030136,22]
[327919119,1716625883707,-964.17,0.00030136,22]
[327919120,1716625883716,-500.0,0.00030136,22]
[327919121,1716625883725,-536.36,0.00030136,22]
[327919122,1716625883735,-554.71,0.00030136,22]
[327919123,1716625883744,-709.62,0.00030136,22]
[327919124,1716625883754,-570.57,0.00030136,22]
[327919125,1716625883763,-500.0,0.00030136,22]
[327919126,1716625883772,-526.11,0.00030136,22]
[327919127,1716625883781,-547.14,0.00030136,22]
[327919128,1716625883790,-521.18,0.00030136,22]
[327919129,1716625883800,-571.92,0.00030136,22]
[327919130,1716625883809,-503.18,0.00030136,22]
[327919131,1716625883820,-2441.44,0.00030136,22]
[327919132,1716625883831,-3812.61,0.00030136,22]
[327919133,1716625883841,-369.79589704,0.00030136,22]
[327919134,1716625883851,-545.2,0.00030136,22]
[327919135,1716625883860,-179.34699386,0.00030136,22]
[327919136,1716625883870,-818.85,0.00030136,22]
[327919137,1716625883880,-512.82,0.00030136,22]
[327919138,1716625883889,-500.0,0.00030136,22]
[327919139,1716625883901,-699.92,0.00030136,22]
[327919140,1716625883910,-625.69,0.00030136,22]
[327919141,1716625883919,-1637.53,0.00030136,22]
[327919142,1716625883929,-692.07,0.00030136,22]
[327919143,1716625883939,-1647.0,0.00030136,22]
[327919144,1716625883947,-500.0,0.00030136,22]
[327919145,1716625883957,-1590.4,0.00030136,22]
[327919146,1716625883965,-608.21,0.00030136,22]
[327919147,1716625883975,-4026.36,0.00030136,22]
[327919148,1716625883984,-509.49,0.00030136,22]
[327919149,1716625883994,-395.94012863,0.00030136,22]
[327919150,1716625884003,-718.05,0.00030136,22]
[327919151,1716625884012,-500.0,0.00030136,22]
[327919152,1716625884022,-4651.21,0.00030136,22]
[327919153,1716625884031,-807.26,0.00030136,22]
[327919154,1716625884040,-951.39,0.00030136,22]
[327919155,1716625884050,-1651.56,0.00030136,21]
[327919156,1716625884059,-866.31,0.00030136,22]
[327919157,1716625884068,-728.56,0.00030136,22]
[327919158,1716625884078,-5083.02,0.00030136,22]
[327919159,1716625884088,-606.33,0.00030136,22]
[327919160,1716625884097,-176.89665823,0.00030137,7]
[327919161,1716625884106,-492.48142386,0.00030139,7]
[327919162,1716625884116,-306.76396198,0.0003015,120]
[327919163,1716625884126,-152.60733836,0.00030192,7]
[327919164,1716625884136,-176.89665824,0.00030264,7]
[327919165,1716625884145,-492.48142386,0.00030299,7]
[327919166,1716625884155,-569.107202,0.0003031,2]
[327919167,1716625884165,-513.133568,0.0003031,2]
[327919168,1716625884175,-626.50232396,0.0003033,120]
[327919169,1716625884185,-492.48142386,0.0003033,7]
[327919170,1716625884195,-528.15,0.0003041,23]
[327919171,1716625884204,-659.81,0.0003041,23]
[327919172,1716625884214,-768.52,0.0003041,23]
[327919173,1716625884223,-537.15,0.0003041,23]
[327919174,1716625884233,-500.0,0.0003041,23]
[327919175,1716625884243,-570.39,0.0003041,23]
[327919176,1716625884252,-503.91477968,0.0003041,23]
[327919177,1716625884262,-500.0,0.0003041,23]
[327919178,1716625884271,-500.0,0.0003041,23]
[327919179,1716625884281,-721.25,0.0003041,23]
[327919180,1716625884291,-964.17,0.0003041,23]
[327919181,1716625884301,-500.0,0.0003041,23]
[327919182,1716625884310,-536.36,0.0003041,23]
[327919183,1716625884319,-554.71,0.0003041,23]
[327919184,1716625884329,-709.62,0.0003041,23]
[327919185,1716625884339,-570.57,0.0003041,23]
[327919186,1716625884348,-583.16318038,0.0003041,23]
[327919187,1716625884358,-526.11,0.0003041,23]
[327919188,1716625884366,-547.14,0.0003041,23]
[327919189,1716625884376,-521.18,0.0003041,23]
[327919190,1716625884385,-571.92,0.0003041,23]
[327919191,1716625884395,-503.18,0.0003041,23]
[327919192,1716625884404,-2441.44,0.0003041,23]
[327919193,1716625884414,-3812.61,0.0003041,23]
[327919194,1716625884423,-545.2,0.0003041,23]
[327919195,1716625884433,-818.85,0.0003041,23]
[327919196,1716625884443,-512.82,0.0003041,23]
[327919197,1716625884452,-356.98889455,0.0003041,23]
[327919198,1716625884462,-699.92,0.0003041,23]
[327919199,1716625884471,-625.69,0.0003041,23]
[327919200,1716625884480,-1637.53,0.0003041,23]
[327919201,1716625884490,-692.07,0.0003041,23]
[327919202,1716625884499,-1647.0,0.0003041,23]
[327919203,1716625884508,-500.0,0.0003041,23]
[327919204,1716625884517,-1590.4,0.0003041,23]
[327919205,1716625884527,-608.21,0.0003041,23]
[327919206,1716625884536,-4026.36,0.0003041,23]
[327919207,1716625884545,-509.49,0.0003041,23]
[327919208,1716625884554,-718.05,0.0003041,23]
[327919209,1716625884563,-282.41806656,0.0003041,23]
[327919210,1716625884572,-4651.21,0.0003041,23]
[327919211,1716625884582,-807.26,0.0003041,23]
[327919212,1716625884591,-951.39,0.0003041,23]
[327919213,1716625884601,-1651.56,0.0003041,21]
[327919214,1716625884610,-866.31,0.0003041,23]
[327919215,1716625884620,-728.56,0.0003041,23]
[327919216,1716625884629,-5083.02,0.0003041,23]
[327919217,1716625884639,-606.33,0.0003041,23]
[327919218,1716625884648,-492.48142386,0.00030439,7]
[327919219,1716625884657,-152.60733836,0.00030494,7]
[327919220,1716625884666,-700.80663042,0.000305,3]
[327919221,1716625884675,-152.60733836,0.00030562,7]
[327919222,1716625884686,-492.48142386,0.00030583,7]
[327919223,1716625884695,-528.15,0.00030684,24]
[327919224,1716625884705,-659.81,0.00030684,24]
[327919225,1716625884714,-768.52,0.00030684,24]
[327919226,1716625884723,-537.15,0.00030684,24]
[327919227,1716625884732,-500.0,0.00030684,24]
[327919228,1716625884742,-570.39,0.00030684,24]
[327919229,1716625884751,-481.65070267,0.00030684,24]
[327919230,1716625884760,-335.46731522,0.00030684,24]
[327919231,1716625884770,-721.25,0.00030684,24]
[327919232,1716625884779,-964.17,0.00030684,24]
[327919233,1716625884788,-408.91707259,0.00030684,24]
[327919234,1716625884798,-536.36,0.00030684,24]
[327919235,1716625884807,-554.71,0.00030684,24]
[327919236,1716625884817,-709.62,0.00030684,24]
[327919237,1716625884829,-570.57,0.00030684,24]
[327919238,1716625884838,-526.11,0.00030684,24]
[327919239,1716625884847,-547.14,0.00030684,24]
[327919240,1716625884856,-521.18,0.00030684,24]
[327919241,1716625884867,-571.92,0.00030684,24]
[327919242,1716625884876,-503.18,0.00030684,24]
[327919243,1716625884886,-2441.44,0.00030684,24]
[327919244,1716625884896,-3812.61,0.00030684,24]
[327919245,1716625884905,-545.2,0.00030684,24]
[327919246,1716625884916,-818.85,0.00030684,24]
[327919247,1716625884927,-512.82,0.00030684,24]
[327919248,1716625884937,-699.92,0.00030684,24]
[327919249,1716625884947,-625.69,0.00030684,24]
[327919250,1716625884955,-1637.53,0.00030684,24]
[327919251,1716625884965,-692.07,0.00030684,24]
[327919252,1716625884975,-1647.0,0.00030684,24]
[327919253,1716625884984,-304.71091597,0.00030684,24]
[327919254,1716625884994,-1590.4,0.00030684,24]
[327919255,1716625885005,-608.21,0.00030684,24]
[327919256,1716625885015,-4026.36,0.00030684,24]
[327919257,1716625885024,-509.49,0.00030684,24]
[327919258,1716625885034,-718.05,0.00030684,24]
[327919259,1716625885043,-4651.21,0.00030684,24]
[327919260,1716625885052,-807.26,0.00030684,24]
[327919261,1716625885062,-951.39,0.00030684,24]
[327919262,1716625885072,-866.31,0.00030684,24]
[327919263,1716625885082,-1651.56,0.00030684,21]
[327919264,1716625885091,-728.56,0.00030684,24]
[327919265,1716625885101,-5083.02,0.00030684,24]
[327919266,1716625885114,-606.33,0.00030684,24]
[327919267,1716625885124,-12753.32015021,0.00030692,2]
[327919268,1716625885134,-2622.44453318,0.00030692,30]
[327919269,1716625885143,-152.60733836,0.000307,7]
[327919270,1716625885152,-152.60733836,0.0003072,7]
[327919271,1716625885162,-492.48142386,0.00030778,7]
[327919272,1716625885171,-152.60733836,0.00030887,7]
[327919273,1716625885181,-300.0,0.000309,4]
[327919274,1716625885191,-335.35,0.000309,2]
[327919275,1716625885200,-528.26882908,0.00030958,25]
[327919276,1716625885209,-659.90504691,0.00030958,25]
[327919277,1716625885219,-768.73978442,0.00030958,25]
[327919278,1716625885229,-537.33426804,0.00030958,25]
[327919279,1716625885238,-449.72841014,0.00030958,25]
[327919280,1716625885247,-570.46353785,0.00030958,25]
[327919281,1716625885257,-721.3606838,0.00030958,25]
[327919282,1716625885267,-964.27194008,0.00030958,25]
[327919283,1716625885391,-536.58325707,0.00030958,25]
[327919284,1716625885401,-554.76375252,0.00030958,25]
[327919285,1716625885411,-709.75858702,0.00030958,25]
[327919286,1716625885421,-570.66516291,0.00030958,25]
[327919287,1716625885431,-526.19973312,0.00030958,25]
[327919288,1716625885440,-547.21833495,0.00030958,25]
[327919289,1716625885449,-521.27093392,0.00030958,25]
[327919290,1716625885459,-572.02376203,0.00030958,25]
[327919291,1716625885468,-503.18719247,0.00030958,25]
[327919292,1716625885477,-2441.53017382,0.00030958,25]
[327919293,1716625885487,-3812.8491756,0.00030958,25]
[327919294,1716625885496,-545.27755067,0.00030958,25]
[327919295,1716625885506,-818.9549237,0.00030958,25]
[327919296,1716625885515,-512.91697486,0.00030958,25]
[327919297,1716625885525,-700.03203447,0.00030958,25]
[327919298,1716625885535,-625.84057826,0.00030958,25]
[327919299,1716625885544,-1637.55582904,0.00030958,25]
[327919300,1716625885554,-692.27846975,0.00030958,25]
[327919301,1716625885563,-1647.16717441,0.00030958,25]
[327919302,1716625885573,-1590.4390697,0.00030958,25]
[327919303,1716625885583,-608.23607703,0.00030958,25]
[327919304,1716625885592,-4026.43772721,0.00030958,25]
[327919305,1716625885602,-509.54737469,0.00030958,25]
[327919306,1716625885611,-718.10814576,0.00030958,25]
[327919307,1716625885621,-4651.22385058,0.00030958,25]
[327919308,1716625885631,-807.28209077,0.00030958,25]
[327919309,1716625885641,-951.62280162,0.00030958,25]
[327919310,1716625885651,-866.38989373,0.00030958,25]
[327919311,1716625885660,-1651.60947645,0.00030958,21]
[327919312,1716625885670,-728.65525994,0.00030958,25]
[327919313,1716625885681,-5083.23804516,0.00030958,25]
[327919314,1716625885690,-606.38374161,0.00030958,25]
[327919315,1716625885699,-492.48142386,0.00030979,7]
[327919316,1716625885709,-1516.96436264,0.00031,2]
[327919317,1716625885719,-1973.68350076,0.00031,2]
[327919318,1716625885729,-76649.13275732,0.00031,2]
[327919319,1716625885738,-1000.0,0.00031,31]
[327919320,1716625885748,-2500.0,0.00031,2]
[327919321,1716625885758,-2688.46190846,0.00031,7]
[327919322,1716625885768,-10000.0,0.00031,7]
[327919323,1716625885778,-16293.59125961,0.00031,7]
[327919324,1716625885787,-813.64357553,0.00031,7]
[327919325,1716625885797,-387.02083624,0.00031,2]
[327919326,1716625885807,-387.02083624,0.00031,2]
[327919327,1716625885816,-387.02083624,0.00031,2]
[327919328,1716625885828,-387.02083624,0.00031,2]
[327919329,1716625885838,-387.02083624,0.00031,2]
[327919330,1716625885847,-387.02083624,0.00031,2]
[327919331,1716625885857,-387.02083624,0.00031,2]
[327919332,1716625885867,-387.02083624,0.00031,2]
[327919333,1716625885877,-387.02083624,0.00031,2]
[327919334,1716625885897,-387.02083624,0.00031,2]
[327919335,1716625885911,-387.02083624,0.00031,2]
[327919336,1716625885921,-387.02083624,0.00031,2]
[327919337,1716625885931,-387.02083624,0.00031,2]
[327919338,1716625885941,-387.02083624,0.00031,2]
[327919339,1716625885951,-387.02083624,0.00031,2]
[327919340,1716625885962,-387.02083624,0.00031,2]
[327919341,1716625885971,-387.02083624,0.00031,2]
[327919342,1716625885982,-387.02083624,0.00031,2]
[327919343,1716625885992,-387.02083624,0.00031,2]
[327919344,1716625886002,-387.02083,0.00031,2]
[327919345,1716625886013,-492.48142386,0.00031027,7]
[327919346,1716625886024,-492.48142386,0.00031035,7]
[327919347,1716625886034,-492.48142386,0.00031041,7]
[327919348,1716625886044,-492.48142386,0.00031072,7]
[327919349,1716625886054,-492.48142391,0.00031092,7]
[327919350,1716625886064,-152.60733836,0.00031127,7]
[327919351,1716625886075,-152.60733846,0.00031191,7]
[327919352,1716625886085,-564.0,0.000312,4]
[327919353,1716625886095,-341.0,0.000312,4]
[327919354,1716625886104,-69162.29540242,0.00031248,5]
[327919355,1716625886114,-3000.0,0.000315,8]
[327919356,1716625886125,-3000.0,0.0003151,8]
[327919357,1716625886135,-3000.0,0.0003152,8]
[327919358,1716625886145,-3000.0,0.0003153,8]
[327919359,1716625886156,-3000.0,0.0003154,8]
[327919360,1716625886166,-3000.0,0.0003155,8]
[327919361,1716625886176,-3000.0,0.0003156,8]
[327919362,1716625886188,-3000.0,0.0003157,8]
[327919363,1716625886198,-3000.0,0.0003158,8]
[327919364,1716625886207,-3000.0,0.0003159,8]
[327919365,1716625886217,-3000.0,0.000316,8]
[327919366,1716625886227,-3000.0,0.0003161,8]
[327919367,1716625886238,-3000.0,0.0003162,8]
[327919368,1716625886249,-3000.0,0.0003163,8]
[327919369,1716625886259,-3000.0,0.0003164,8]
[327919370,1716625886269,-3000.0,0.0003165,8]
[327919371,1716625886279,-3000.0,0.0003166,9]
[327919372,1716625886290,-3000.0,0.0003167,9]
[327919373,1716625886300,-3000.0,0.0003168,9]
[327919374,1716625886312,-3000.0,0.0003169,9]
[327919375,1716625886323,-3000.0,0.000317,9]
[327919376,1716625886333,-3000.0,0.0003171,9]
[327919377,1716625886343,-3000.0,0.0003172,9]
[327919378,1716625886354,-3000.0,0.0003173,9]
[327919379,1716625886363,-3000.0,0.0003174,9]
[327919380,1716625886373,-3000.0,0.0003175,9]
[327919381,1716625886383,-3000.0,0.0003176,9]
[327919382,1716625886393,-3000.0,0.0003177,9]
[327919383,1716625886403,-3000.0,0.0003178,9]
[327919384,1716625886413,-3000.0,0.0003179,9]
[327919385,1716625886422,-3026.97335961,0.000318,3]
[327919386,1716625886433,-3000.0,0.000318,9]
[327919387,1716625886443,-3027.27575455,0.000318,3]
[327919388,1716625886453,-3000.0,0.0003181,9]
[327919389,1716625886463,-3000.0,0.0003182,9]
[327919390,1716625886472,-3000.0,0.0003183,9]
[327919391,1716625886481,-3000.0,0.0003184,9]
[327919392,1716625886491,-3000.0,0.0003185,9]
[327919393,1716625886500,-3000.0,0.0003186,9]
[327919394,1716625886509,-3000.0,0.0003187,9]
[327919395,1716625886518,-3000.0,0.0003188,9]
[327919396,1716625886528,-3000.0,0.0003189,9]
[327919397,1716625886537,-22500.0,0.000319,30]
[327919398,1716625886546,-282.0,0.000319,4]
[327919399,1716625886555,-282.0,0.000319,4]
[327919400,1716625886566,-300.0,0.000319,5]
[327919401,1716625886575,-3000.0,0.000319,9]
[327919402,1716625886583,-3000.0,0.0003191,10]
[327919403,1716625886592,-3000.0,0.0003192,10]
[327919404,1716625886601,-3000.0,0.0003193,10]
[327919405,1716625886610,-3000.0,0.0003194,10]
[327919406,1716625886619,-3000.0,0.0003195,10]
[327919407,1716625886628,-5341.786831,0.0003196,10]
[327919408,1716625886638,-66599.1145,0.00031963,30]
[327919409,1716625886647,-502.31398903,0.00031998,2]
[327919410,1716625886656,-1000.0,0.00032,43]
[327919411,1716625886666,-4870.529108,0.00032,2]
[327919412,1716625886675,-477.34616081,0.00032,4]
[327919413,1716625886684,-5807.19503971,0.00032,2]
[327919414,1716625886693,-3000.0,0.00032,30]
[327919415,1716625886703,-20184.0,0.00032,2]
[327919416,1716625886712,-4518.22352848,0.00032,120]
[327919417,1716625886721,-744.01900885,0.00032,2]
[327919418,1716625886730,-154.82968734,0.00032,3]
[327919419,1716625886739,-175941.21085393,0.00032,2]
[327919420,1716625886748,-1719.08,0.00032,4]
[327919421,1716625886758,-180.0,0.00032,16]
[327919422,1716625886767,-650.0,0.00032,120]
[327919423,1716625886777,-2688.0,0.00032,7]
[327919424,1716625886787,-10000.0,0.00032,7]
[327919425,1716625886796,-16292.0,0.00032,7]
[327919426,1716625886805,-813.0,0.00032,7]
[327919427,1716625886814,-500.0,0.00032232,2]
[327919428,1716625886827,-1000.0,0.000325,2]
[327919429,1716625886836,-200.0,0.00032567,120]
[327919430,1716625886845,-200.0,0.00032584,120]
[327919431,1716625886854,-1000.0,0.000327,60]
[327919432,1716625886864,-200.0,0.00032721,120]
[327919433,1716625886873,-167.00642133,0.00032876,2]
[327919434,1716625886883,-500.0,0.00032876,2]
[327919435,1716625886892,-387.34847826,0.00032876,2]
[327919436,1716625886903,-419.90694761,0.00032876,2]
[327919437,1716625886913,-500.0,0.00032876,2]
[327919438,1716625886922,-167.00642133,0.00032876,2]
[327919439,1716625886931,-500.0,0.00032876,2]
[327919440,1716625886940,-500.0,0.00032876,2]
[327919441,1716625886949,-500.0,0.00032876,2]
[327919442,1716625886959,-606.42347035,0.00032876,2]
[327919443,1716625886968,-368.28468021,0.00032876,2]
[327919444,1716625886977,-500.0,0.00032876,2]
[327919445,1716625886986,-500.0,0.00032876,2]
[327919446,1716625886996,-500.0,0.00032876,2]
[327919447,1716625887005,-500.0,0.00032876,2]
[327919448,1716625887014,-500.0,0.00032876,2]
[327919449,1716625887024,-500.0,0.00032876,2]
[327919450,1716625887033,-350.0,0.00032876,2]
[327919451,1716625887042,-500.0,0.00032876,2]
[327919452,1716625887051,-500.0,0.00032876,2]
[327919453,1716625887060,-500.0,0.00032876,2]
[327919454,1716625887070,-223.94822666,0.00032876,2]
[327919455,1716625887079,-500.0,0.00032876,2]
[327919456,1716625887088,-500.0,0.00032876,2]
[327919457,1716625887098,-420.88933318,0.00032876,2]